lending/lending_fUSD_20240110
["ID","MTS","AMOUNT","RATE_DAILY","PERIOD"]
[311007580,1704859840379,-22844.69771169,0.000299,2]
[311007581,1704859840389,-22844.69771169,0.000299,2]
[311007582,1704859840399,-22844.69771169,0.000299,2]
[311007583,1704859840408,-22844.69771169,0.000299,2]
[311007584,1704859840418,-22844.69771169,0.000299,2]
[311007585,1704859840427,-22844.69771169,0.000299,2]
[311007586,1704859840437,-16481.0,0.00029996,2]
[311007587,1704859840447,-155.0,0.0003,2]
[311007588,1704859840457,-17306.74620301,0.0003,4]
[311007589,1704859840466,-9620.2298148,0.0003,2]
[311007590,1704859840476,-663.80282667,0.0003,4]
[311007591,1704859840486,-677.39798564,0.0003,4]
[311007592,1704859840495,-274.43076635,0.0003,4]
[311007593,1704859840505,-37489.57848614,0.0003,4]
[311007594,1704859840515,-791.57141352,0.0003,2]
[311007595,1704859840524,-9093.76,0.0003,2]
[311007596,1704859840533,-839.07689483,0.0003,2]
[311007597,1704859840543,-16495.5114499,0.0003,2]
[311007598,1704859840556,-3000.0,0.0003,2]
[311007599,1704859840565,-3000.0,0.0003,2]
[311007600,1704859840575,-3000.0,0.0003,2]
[311007601,1704859840585,-3000.0,0.0003,2]
[311007602,1704859840595,-3000.0,0.0003,2]
[311007603,1704859840604,-3000.0,0.0003,2]
[311007604,1704859840614,-1000.0,0.0003,2]
[311007605,1704859840623,-563.93,0.00030068,2]
[311007606,1704859840634,-8616.7521853,0.0003008,2]
[311007607,1704859840644,-326.53251772,0.000301,4]
[311007608,1704859840654,-2455.25572279,0.000301,2]
[311007609,1704859840663,-153.84,0.00030137,2]
[311007610,1704859840673,-10000.0,0.00030137,2]
[311007611,1704859840682,-159.77255982,0.00030137,2]
[311007612,1704859840691,-500.0,0.00030191,2]
[311007613,1704859840701,-545.08,0.00030192,2]
[311007614,1704859840710,-152.50260852,0.00030197,2]
[311007615,1704859840720,-151.4011,0.00030198,2]
[311007616,1704859840729,-4398.0,0.000302,2]
[311007617,1704859840739,-48844.0,0.000302,2]
[311007618,1704859840749,-151.4011,0.00030298,2]
[311007619,1704859840759,-883.94526294,0.00030337,5]
[311007620,1704859840768,-293.69,0.00030356,2]
[311007621,1704859840778,-872.84,0.00030356,2]
[311007622,1704859840788,-293.69,0.00030356,2]
[311007623,1704859840797,-683.7,0.00030356,2]
[311007624,1704859840807,-293.69,0.00030356,2]
[311007625,1704859840820,-239.88,0.00030356,2]
[311007626,1704859840829,-151.4011,0.00030398,2]
[311007627,1704859840838,-200.0,0.00030399,2]
[311007628,1704859840847,-151.4011,0.00030498,2]
[311007629,1704859840857,-151.97,0.00030596,2]
[311007630,1704859840866,-192.39,0.00030596,2]
[311007631,1704859840876,-303.57,0.00030596,2]
[311007632,1704859840885,-426.82,0.00030596,2]
[311007633,1704859840894,-407.44,0.00030596,2]
[311007634,1704859840904,-417.51,0.00030596,2]
[311007635,1704859840913,-313.77,0.00030596,2]
[311007636,1704859840922,-319.26,0.00030596,2]
[311007637,1704859840932,-151.4011,0.00030598,2]
[311007638,1704859840941,-151.4011,0.00030698,2]
[311007639,1704859840951,-151.4011,0.00030798,2]
[311007640,1704859840961,-151.4011,0.00030898,2]
[311007641,1704859840970,-151.4011,0.00030998,2]
[311007642,1704859840979,-500.0,0.00031,3]
[311007643,1704859840989,-500.0,0.00031023,2]
[311007644,1704859840998,-153.84,0.0003105,2]
[311007645,1704859841009,-151.4011,0.00031098,2]
[311007646,1704859841018,-262.52,0.00031182,2]
[311007647,1704859841028,-151.4011,0.00031198,2]
[311007648,1704859841037,-8616.7521853,0.00031277,2]
[311007649,1704859841047,-151.4011,0.00031298,2]
[311007650,1704859841059,-151.4011,0.00031398,2]
[311007651,1704859841068,-407.65,0.00031418,2]
[311007652,1704859841078,-313.91,0.00031418,2]
[311007653,1704859841087,-587.1,0.00031418,2]
[311007654,1704859841097,-407.65,0.00031418,2]
[311007655,1704859841108,-313.91,0.00031418,2]
[311007656,1704859841118,-407.65,0.00031418,2]
[311007657,1704859841127,-313.91,0.00031418,2]
[311007658,1704859841136,-313.91,0.00031418,2]
[311007659,1704859841145,-397.1,0.00031419,2]
[311007660,1704859841154,-193.35,0.00031419,2]
[311007661,1704859841164,-200.0,0.00031439,2]
[311007662,1704859841173,-151.4011,0.00031498,2]
[311007663,1704859841182,-500.0,0.000315,2]
[311007664,1704859841191,-426.51,0.00031507,2]
[311007665,1704859841201,-319.26,0.00031575,2]
[311007666,1704859841210,-151.4011,0.00031598,2]
[311007667,1704859841219,-165.66,0.00031644,2]
[311007668,1704859841229,-50000.0,0.00031649,7]
[311007669,1704859841238,-151.4011,0.00031698,2]
[311007670,1704859841248,-719.51,0.00031709,2]
[311007671,1704859841258,-500.0,0.00031741,2]
[311007672,1704859841267,-200.0,0.00031741,3]
[311007673,1704859841276,-800.0,0.00031741,5]
[311007674,1704859841286,-151.4011,0.00031798,2]
[311007675,1704859841295,-500.0,0.000318,2]
[311007676,1704859841305,-500.0,0.000318,2]
[311007677,1704859841314,-500.0,0.000318,2]
[311007678,1704859841323,-500.0,0.000318,2]
[311007679,1704859841332,-500.0,0.000318,2]
[311007680,1704859841341,-500.0,0.000318,2]
[311007681,1704859841351,-11537.5672982,0.000318,2]
[311007682,1704859841360,-1000.0,0.00031838,2]
[311007683,1704859841369,-1000.0,0.00031838,2]
[311007684,1704859841379,-1000.0,0.00031838,2]
[311007685,1704859841388,-1000.0,0.00031838,2]
[311007686,1704859841398,-1000.0,0.00031838,2]
[311007687,1704859841407,-361.8785,0.00031838,2]
[311007688,1704859841416,-500.0,0.00031838,2]
[311007689,1704859841426,-500.0,0.00031838,2]
[311007690,1704859841435,-500.0,0.00031838,2]
[311007691,1704859841444,-500.0,0.00031838,2]
[311007692,1704859841453,-190.383,0.00031838,2]
[311007693,1704859841463,-500.0,0.00031855,2]
[311007694,1704859841473,-151.4011,0.00031898,2]
[311007703,1704859841789,-153.84,0.00031963,2]
[311007704,1704859841799,-597.1,0.00031971,2]
[311007705,1704859841810,-597.1,0.00031971,2]
[311007706,1704859841819,-50000.0,0.00031972,7]
[311007707,1704859841829,-1418.59087224,0.00031998,2]
[311007708,1704859841838,-151.4011,0.00031998,2]
[311007709,1704859841847,-305760.71731836,0.00032,2]
[311007710,1704859841857,-3000.0,0.00032,2]
[311007711,1704859841867,-3000.0,0.0003201,2]
[311007712,1704859841876,-3000.0,0.0003202,2]
[311007713,1704859841885,-3000.0,0.0003203,2]
[311007714,1704859841894,-3000.0,0.0003204,2]
[311007715,1704859841904,-3000.0,0.0003205,2]
[311007716,1704859841913,-3000.0,0.0003206,2]
[311007717,1704859841923,-3000.0,0.0003207,2]
[311007718,1704859841933,-3000.0,0.0003208,2]
[311007719,1704859841943,-3000.0,0.0003209,2]
[311007720,1704859841952,-3000.0,0.000321,2]
[311007721,1704859841962,-3000.0,0.0003211,2]
[311007722,1704859841971,-3000.0,0.0003212,2]
[311007723,1704859841981,-3000.0,0.0003213,2]
[311007724,1704859841990,-3000.0,0.0003214,2]
[311007725,1704859841999,-3000.0,0.0003215,2]
[311007726,1704859842009,-3000.0,0.0003216,2]
[311007727,1704859842019,-3000.0,0.0003217,2]
[311007728,1704859842028,-3000.0,0.0003218,2]
[311007729,1704859842038,-3000.0,0.0003219,2]
[311007730,1704859842048,-151.4011,0.00032198,2]
[311007731,1704859842058,-3000.0,0.000322,2]
[311007732,1704859842067,-3000.0,0.0003221,2]
[311007733,1704859842077,-3000.0,0.0003222,2]
[311007734,1704859842087,-206.0,0.00032226,17]
[311007735,1704859842097,-3000.0,0.0003223,2]
[311007736,1704859842107,-3000.0,0.0003224,2]
[311007737,1704859842118,-5786.791,0.00032242,2]
[311007738,1704859842127,-4435.77808308,0.00032242,2]
[311007739,1704859842782,-1130.22191692,0.00032242,2]
[311007740,1704859842792,-2900.0,0.00032242,2]
[311007741,1704859842801,-4200.667,0.00032242,2]
[311007742,1704859842811,-2269.0,0.00032242,2]
[311007743,1704859842820,-41991.0,0.00032242,2]
[311007744,1704859842829,-19668.0,0.00032242,2]
[311007745,1704859842838,-434.067,0.00032242,2]
[311007746,1704859842847,-1056.432,0.00032242,2]
[311007747,1704859842856,-883.94526294,0.00032246,5]
[311007748,1704859842866,-3000.0,0.0003225,2]
[311007749,1704859842875,-3000.0,0.0003226,2]
[311007750,1704859842885,-3000.0,0.0003227,2]
[311007751,1704859842894,-3000.0,0.0003228,2]
[311007752,1704859842903,-4179.609117,0.0003229,2]
[311007753,1704859842912,-151.4011,0.00032398,2]
[311007754,1704859842921,-8616.7521853,0.00032474,4]
[311007755,1704859842931,-200.0,0.00032479,2]
[311007756,1704859842942,-319.26,0.00032553,2]
[311007757,1704859842951,-151.4011,0.00032598,2]
[311007758,1704859842961,-155.59620802,0.000326,4]
[311007759,1704859842970,-500.0,0.00032687,2]
[311007760,1704859842980,-151.4011,0.00032798,2]
[311007761,1704859842989,-1000.0,0.000328,2]
[311007762,1704859842999,-563.93,0.00032802,2]
[311007763,1704859843008,-155.24644617,0.00032876,7]
[311007764,1704859843018,-236.98156705,0.00032876,7]
[311007765,1704859843027,-153.84,0.00032877,2]
[311007766,1704859843037,-151.0,0.00032877,7]
[311007767,1704859843047,-151.0,0.00032877,7]
[311007768,1704859843057,-151.0,0.00032877,7]
[311007769,1704859843066,-151.0,0.00032877,7]
[311007770,1704859843076,-154.085623,0.00032877,7]
[311007771,1704859843085,-151.0,0.00032877,7]
[311007772,1704859843094,-158.288828,0.00032877,7]
[311007773,1704859843104,-151.0,0.00032877,7]
[311007774,1704859843113,-156.613492,0.00032877,7]
[311007775,1704859843122,-151.0,0.00032877,7]
[311007776,1704859843131,-591.54,0.00032877,15]
[311007777,1704859843141,-151.0,0.00032877,7]
[311007778,1704859843150,-359.439517,0.00032877,7]
[311007779,1704859843160,-359.439517,0.00032877,7]
[311007780,1704859843170,-359.439517,0.00032877,7]
[311007781,1704859843180,-359.439517,0.00032877,7]
[311007782,1704859843189,-359.439517,0.00032877,7]
[311007783,1704859843199,-359.439517,0.00032877,7]
[311007784,1704859843211,-151.0,0.00032877,7]
[311007786,1704859843220,-151.0,0.00032877,7]
[311007788,1704859843229,-151.0,0.00032877,7]
[311007790,1704859843238,-155.642563,0.00032877,7]
[311007791,1704859843247,-157.735992,0.00032877,7]
[311007792,1704859843256,-154.987923,0.00032877,7]
[311007793,1704859843265,-285.330935,0.00032877,7]
[311007794,1704859843275,-151.0,0.00032877,7]
[311007795,1704859843284,-151.0,0.00032877,7]
[311007796,1704859843293,-151.0,0.00032877,7]
[311007797,1704859843303,-151.0,0.00032877,7]
[311007798,1704859843317,-151.0,0.00032877,7]
[311007799,1704859843326,-151.0,0.00032877,7]
[311007800,1704859843336,-151.0,0.00032877,7]
[311007801,1704859843345,-151.0,0.00032877,7]
[311007802,1704859843354,-651.50233,0.00032877,7]
[311007803,1704859843364,-651.50233,0.00032877,7]
[311007804,1704859843373,-651.50233,0.00032877,7]
[311007805,1704859843382,-651.50233,0.00032877,7]
[311007806,1704859843392,-651.50233,0.00032877,7]
[311007807,1704859843401,-651.50233,0.00032877,7]
[311007808,1704859843410,-153.706673,0.00032877,7]
[311007809,1704859843420,-151.0,0.00032877,7]
[311007810,1704859843429,-151.0,0.00032877,7]
[311007811,1704859843438,-151.0,0.00032877,7]
[311007812,1704859843447,-151.0,0.00032877,7]
[311007813,1704859843456,-151.0,0.00032877,7]
[311007814,1704859843465,-151.0,0.00032877,7]
[311007815,1704859843474,-151.0,0.00032877,3]
[311007816,1704859843484,-194.449392,0.00032877,3]
[311007817,1704859843493,-222.489158,0.00032877,7]
[311007818,1704859843503,-222.489158,0.00032877,7]
[311007819,1704859843512,-222.489158,0.00032877,7]
[311007820,1704859843521,-222.489158,0.00032877,7]
[311007821,1704859843530,-222.489158,0.00032877,7]
[311007822,1704859843540,-222.489158,0.00032877,7]
[311007823,1704859843549,-151.0,0.00032877,7]
[311007824,1704859843561,-163.263869,0.00032877,7]
[311007825,1704859843570,-796.451197,0.00032877,7]
[311007826,1704859843580,-796.451197,0.00032877,7]
[311007827,1704859843589,-796.451197,0.00032877,7]
[311007828,1704859843598,-796.451197,0.00032877,7]
[311007829,1704859843608,-796.451197,0.00032877,7]
[311007830,1704859843618,-796.451197,0.00032877,7]
[311007831,1704859843627,-171.510429,0.00032877,7]
[311007832,1704859843637,-171.510429,0.00032877,7]
[311007833,1704859843646,-171.510429,0.00032877,7]
[311007834,1704859843656,-171.510429,0.00032877,7]
[311007835,1704859843665,-171.510429,0.00032877,7]
[311007836,1704859843674,-171.510429,0.00032877,7]
[311007837,1704859843683,-151.0,0.00032877,7]
[311007838,1704859843693,-151.433301,0.00032877,7]
[311007839,1704859843702,-151.0,0.00032877,7]
[311007840,1704859843711,-151.0,0.00032877,7]
[311007841,1704859843720,-151.0,0.00032877,7]
[311007842,1704859843729,-151.0,0.00032877,7]
[311007843,1704859843738,-151.0,0.00032877,7]
[311007844,1704859843748,-151.0,0.00032877,7]
[311007845,1704859843757,-265.823604,0.00032877,7]
[311007846,1704859843766,-265.823604,0.00032877,7]
[311007847,1704859843776,-265.823604,0.00032877,7]
[311007849,1704859843785,-265.823604,0.00032877,7]
[311007850,1704859843794,-265.823604,0.00032877,7]
[311007852,1704859843803,-265.823604,0.00032877,7]
[311007853,1704859843920,-151.0,0.00032877,7]
[311007854,1704859843929,-151.0,0.00032877,7]
[311007855,1704859843938,-151.0,0.00032877,7]
[311007856,1704859843947,-150.0,0.00032877,30]
[311007857,1704859843956,-911.71462714,0.000329,2]
[311007858,1704859843965,-545.08,0.00032936,2]
[311007859,1704859843975,-151.4011,0.00032998,2]
[311007860,1704859843984,-4873.79092382,0.00033,2]
[311007861,1704859843994,-1245.75987952,0.00033,2]
[311007862,1704859844003,-550.0,0.00033,3]
[311007863,1704859844012,-151.0,0.00033,7]
[311007864,1704859844023,-151.0,0.00033,7]
[311007865,1704859844032,-181.0,0.00033118,2]
[311007866,1704859844041,-186.0,0.00033118,2]
[311007867,1704859844050,-181.0,0.00033118,2]
[311007868,1704859844060,-151.4011,0.00033198,2]
[311007869,1704859844069,-150.0,0.00033246,2]
[311007870,1704859844078,-73964.59029298,0.00033247,3]
[311007871,1704859844087,-151.0,0.00033367,120]
[311007872,1704859844096,-3960.68557234,0.00033383,14]
[311007873,1704859844106,-151.4011,0.00033398,2]
[311007874,1704859844115,-262.52,0.00033446,2]
[311007875,1704859844124,-139348.78829186,0.000335,2]
[311007876,1704859844133,-500.0,0.00033519,2]
[311007877,1704859844142,-200.0,0.00033519,2]
[311007878,1704859844152,-319.26,0.00033532,2]
[311007879,1704859844161,-151.4011,0.00033598,2]
[311007880,1704859844170,-8616.7521853,0.00033671,5]
[311007881,1704859844179,-889.90004,0.000337,2]
[311007882,1704859844188,-150.0,0.000337,7]
[311007883,1704859844197,-153.84,0.0003379,2]
[311007884,1704859844207,-151.4011,0.00033798,2]
[311007885,1704859844215,-1000.0,0.000338,3]
[311007886,1704859844225,-150.0,0.00033918,2]
[311007887,1704859844235,-959.14621675,0.00033934,10]
[311007888,1704859844245,-151.4011,0.00033998,2]
[311007889,1704859844255,-1000.0,0.00034,4]
[311007890,1704859844265,-805.31109743,0.00034,4]
[311007891,1704859844274,-961.28,0.00034006,2]
[311007892,1704859844282,-939.21,0.00034006,2]
[311007893,1704859844291,-939.46,0.00034006,2]
[311007894,1704859844301,-939.21,0.00034006,2]
[311007895,1704859844312,-939.21,0.00034006,2]
[311007896,1704859844321,-224.71,0.00034006,2]
[311007897,1704859844330,-151.0,0.00034047,30]
[311007898,1704859844339,-150.0,0.00034102,2]
[311007899,1704859844348,-152.847,0.00034102,2]
[311007900,1704859844356,-151.0,0.00034102,2]
[311007901,1704859844365,-151.964,0.00034102,2]
[311007902,1704859844374,-153.0,0.00034102,2]
[311007903,1704859844382,-152.9,0.00034102,2]
[311007904,1704859844392,-152.586,0.00034102,2]
[311007905,1704859844400,-215.072,0.00034102,2]
[311007906,1704859844409,-222.618,0.00034102,2]
[311007907,1704859844418,-152.693,0.00034102,2]
[311007908,1704859844427,-150.515,0.00034102,2]
[311007909,1704859844436,-216.218,0.00034102,2]
[311007910,1704859844445,-2431.455,0.00034102,2]
[311007911,1704859844454,-1311.312,0.00034102,2]
[311007912,1704859844463,-838.0,0.00034102,2]
[311007913,1704859844472,-1860.073,0.00034102,2]
[311007914,1704859844481,-3050.981,0.00034102,2]
[311007915,1704859844490,-944.0,0.00034102,2]
[311007916,1704859844499,-542.937,0.00034102,2]
[311007917,1704859844509,-736.471,0.00034102,2]
[311007918,1704859844518,-526.0,0.00034102,2]
[311007919,1704859844527,-1361.618,0.00034102,2]
[311007920,1704859844537,-1257.463,0.00034102,2]
[311007921,1704859844548,-616.768,0.00034102,2]
[311007922,1704859844561,-1930.0,0.00034102,2]
[311007923,1704859844570,-1027.915,0.00034102,2]
[311007924,1704859844580,-1135.265,0.00034102,2]
[311007925,1704859844590,-881.0,0.00034102,2]
[311007926,1704859844599,-239.76,0.00034102,2]
[311007927,1704859844608,-579.895,0.00034102,2]
[311007928,1704859844617,-318.132,0.00034102,2]
[311007929,1704859844627,-458.14,0.00034102,2]
[311007930,1704859844637,-151.0,0.00034102,7]
[311007931,1704859844646,-151.0,0.00034102,7]
[311007932,1704859844655,-883.94526294,0.00034155,6]
[311007933,1704859844664,-151.4011,0.00034198,2]
[311007934,1704859844673,-150.0,0.00034246,2]
[311007935,1704859844682,-150.0,0.00034382,2]
[311007936,1704859844691,-150.0,0.00034393,2]
[311007937,1704859844700,-151.4011,0.00034398,2]
[311007938,1704859844710,-319.26,0.0003451,2]
[311007939,1704859844719,-3181.321788,0.0003452,2]
[311007940,1704859844728,-3197.37,0.00034521,2]
[311007941,1704859844737,-150.0,0.00034565,2]
[311007942,1704859844747,-200.0,0.0003459,7]
[311007943,1704859844755,-151.4011,0.00034598,2]
[311007944,1704859844765,-150.0,0.00034605,2]
[311007945,1704859844774,-180.0,0.00034658,2]
[311007946,1704859844783,-217.62103545,0.000347,7]
[311007947,1704859844792,-889.90004,0.000347,2]
[311007948,1704859844801,-150.0,0.000347,8]
[311007949,1704859844811,-150.0,0.00034703,2]
[311007950,1704859844821,-153.84,0.00034703,2]
[311007951,1704859844829,-426.51,0.00034703,2]
[311007952,1704859844838,-151.0,0.00034742,7]
[311007953,1704859844848,-206.0,0.00034751,21]
[311007954,1704859844857,-150.0,0.00034788,2]
[311007955,1704859844867,-4771.982682,0.00034794,2]
[311007956,1704859844876,-151.4011,0.00034798,2]
[311007957,1704859844885,-151.0,0.000348,7]
[311007958,1704859844895,-157.64,0.000348,2]
[311007959,1704859844904,-157.64,0.000348,2]
[311007960,1704859844914,-157.64,0.000348,2]
[311007961,1704859844926,-153.40276765,0.00034826,6]
[311007962,1704859844936,-153.40276765,0.00034826,2]
[311007963,1704859844945,-153.40276765,0.00034826,4]
[311007964,1704859844955,-153.40276765,0.00034826,6]
[311007965,1704859844964,-153.40276765,0.00034826,2]
[311007966,1704859844974,-153.40276765,0.00034826,6]
[311007967,1704859844983,-153.40276765,0.00034826,5]
[311007968,1704859844992,-153.40276765,0.00034826,2]
[311007969,1704859845001,-153.40276765,0.00034826,3]
[311007970,1704859845011,-153.40276765,0.00034826,2]
[311007971,1704859845020,-8616.7521853,0.00034867,7]
[311007972,1704859845030,-915.46418969,0.000349,2]
[311007973,1704859845039,-823.89019486,0.000349,2]
[311007974,1704859845049,-823.89019486,0.000349,2]
[311007975,1704859845061,-150.0,0.00034902,2]
[311007976,1704859845070,-150.0,0.00034907,2]
[311007977,1704859845079,-6362.643577,0.00034931,2]
[311007978,1704859845089,-10042.8999455,0.0003495,2]
[311007979,1704859845098,-472.46237828,0.0003498,3]
[311007980,1704859845107,-450.0,0.0003498,3]
[311007981,1704859845116,-450.0,0.0003498,3]
[311007982,1704859845126,-151.4011,0.00034998,2]
[311007983,1704859845135,-2500.0,0.00035,2]
[311007984,1704859845145,-155.64513584,0.00035,3]
[311007985,1704859845154,-16484.46359372,0.00035,2]
[311007986,1704859845163,-11529.95922718,0.00035,4]
[311007987,1704859845186,-155.0,0.0003,2]
[311007988,1704859845196,-203.865,0.00035,4]
[311007989,1704859845208,-1462.8016,0.00035,4]
[311007990,1704859845236,-27943.88574687,0.00035,4]
[311007991,1704859845248,-1285.22235789,0.00035,4]
[311007992,1704859845260,-951.26132272,0.00035,4]
[311007993,1704859845292,-274.72068964,0.00035,4]
[311007994,1704859846105,-399.10686199,0.00035,4]
[311007995,1704859846332,-1227.42648102,0.00035,4]
[311007996,1704859846344,-21904.41868197,0.00035,4]
[311007997,1704859847282,-150.01,0.00023287,2]
[311007998,1704859847293,-502.19937819,0.00023287,2]
[311007999,1704859847326,-411.7493109,0.00023287,2]
[311008000,1704859847404,-392.40522004,0.00023287,2]
[311008001,1704859847417,-1984.57286145,0.00023287,2]
[311008002,1704859847427,-155.0,0.00024096,2]
[311008003,1704859847437,-1992.63907001,0.00035,4]
[311008004,1704859848182,2431.3395,0.000227,2]
[311008005,1704859848532,-714.81,0.00023288,2]
[311008006,1704859848543,-185.19,0.00035,4]
[311008007,1704859848563,-1442.994328,0.00035,4]
[311008008,1704859848577,-12848.75142991,0.00035,4]
[311008009,1704859848594,-15165.72948617,0.00035,4]
[311008011,1704859890382,1733.4371,0.000227,2]
[311008013,1704859926428,16511.1754,0.00022413,14]
[311008014,1704859971969,1000.0,0.000227,2]
[311008015,1704859984135,206.0,0.00022127,2]
[311008016,1704860001350,800.0,0.00022816,2]
[311008017,1704860002705,22025.21,0.000227,2]
[311008018,1704860021502,13292.28235767,0.00037175,30]
[311008020,1704860194841,1932.752725,0.00037175,30]
[311008022,1704860288392,304.949637,0.00037175,30]
[311008023,1704860444494,30468.27548464,0.00037176,30]
[311008025,1704860685607,1965.990009,0.0003718,30]
[311008027,1704860717211,31995.36567953,0.0003718,30]
[311008043,1704861031600,-200.0,0.00024602,2]
[311008044,1704861031612,-155.0,0.00024603,2]
[311008045,1704861031621,-220.06189485,0.00024604,2]
[311008046,1704861031630,-216.18,0.00024615,2]
[311008047,1704861031639,-158.32949847,0.00024892,2]
[311008048,1704861031649,-7770.70671844,0.00024992,2]
[311008049,1704861031658,-722.19,0.00024992,2]
[311008050,1704861031667,-150.0,0.00024993,2]
[311008051,1704861031676,-713.49,0.00024993,2]
[311008052,1704861031685,-716.39,0.00024995,2]
[311008053,1704861031694,-737.03,0.00024996,2]
[311008054,1704861031704,-733.35,0.00024996,2]
[311008055,1704861031713,-722.22,0.00024997,2]
[311008056,1704861031722,-725.42,0.00024998,2]
[311008057,1704861031731,-718.81,0.00024998,2]
[311008058,1704861031741,-726.59,0.00024998,2]
[311008059,1704861031750,-718.3,0.00024998,2]
[311008060,1704861031759,-713.63,0.00024998,2]
[311008061,1704861031769,-725.91,0.00024999,2]
[311008062,1704861031778,-1528.85777683,0.00024999,2]
[311008063,1704861031788,-350.0,0.00025,3]
[311008064,1704861031798,-1016.9503095,0.00025,2]
[311008065,1704861031807,-1581.63681732,0.00025,2]
[311008066,1704861031816,-150.0,0.00025431,2]
[311008067,1704861031825,-183.99,0.00025844,2]
[311008069,1704861031835,-200.0,0.00025871,2]
[311008070,1704861031843,-500.0,0.00025897,2]
[311008072,1704861031852,-3687.09,0.00025914,2]
[311008075,1704861031864,-5303.53,0.00025954,2]
[311008076,1704861031874,-150.0,0.00025979,2]
[311008079,1704861031883,-818.71,0.0002604,2]
[311008081,1704861031891,-734.4,0.00026067,2]
[311008083,1704861031901,-500.0,0.00026099,2]
[311008085,1704861031910,-2705.0,0.00026154,2]
[311008087,1704861031919,-709.91,0.00026154,2]
[311008089,1704861031928,-2000.0,0.00026192,2]
[311008091,1704861031937,-162.01,0.00026239,2]
[311008093,1704861031947,-181.15,0.00026267,2]
[311008095,1704861031956,-3038.33,0.00026296,2]
[311008097,1704861031965,-4467.13,0.00026334,2]
[311008098,1704861031974,-295.95,0.00026371,2]
[311008101,1704861031983,-250.0,0.00026371,2]
[311008102,1704861031992,-1824.38,0.00026419,2]
[311008104,1704861032002,-1898.31,0.00026431,2]
[311008106,1704861032012,-200.0,0.00026446,2]
[311008108,1704861032021,-334.01863798,0.00026497,2]
[311008111,1704861032030,-618.1576907,0.00026498,2]
[311008113,1704861032040,-1852.42,0.00026499,2]
[311008115,1704861032049,-150.0,0.00026527,2]
[311008117,1704861032057,-150.0,0.00026531,2]
[311008119,1704861032066,-153.25,0.00026542,2]
[311008120,1704861032076,-150.0,0.00026542,2]
[311008123,1704861032085,-250.0,0.00026589,2]
[311008125,1704861032094,-347.24,0.00026599,2]
[311008126,1704861032105,-162.01,0.00026695,2]
[311008128,1704861032115,-200.0,0.00026784,2]
[311008130,1704861032126,-800.0,0.00026784,2]
[311008133,1704861032135,-2990.6,0.00026858,2]
[311008135,1704861032145,-216.18,0.00026879,2]
[311008137,1704861032154,-400.0,0.00027,3]
[311008138,1704861032164,-150.0,0.00027075,2]
[311008141,1704861032174,-162.01,0.00027151,2]
[311008143,1704861032183,-211.06,0.00027169,2]
[311008144,1704861032193,-250.0,0.00027397,2]
[311008147,1704861032203,-500.0,0.00027397,2]
[311008149,1704861032213,-250.0,0.000274,2]
[311008151,1704861032222,-158.32949846,0.00027548,2]
[311008152,1704861032231,-162.01,0.00027607,2]
[311008154,1704861032240,-183.92704501,0.00027623,2]
[311008156,1704861032250,-23890.0,0.00027668,2]
[311008158,1704861032259,-5979.48180291,0.000278,2]